[Event "20th Rochefort Chess Festival - Masters"]
[Site "Rochefort, France"]
[Date "2022.02.17"]
[Round "8.1"]
[White "Laurent-Paoli, Pierre"]
[Black "Galperin, Platon"]
[Result "1/2-1/2"]
[TimeControl "1h30 + [30'']"]
[WhiteElo "2483"]
[BlackElo "2522"]

1. d4 {[%clk 01:30:58]} Nf6 {[%clk 01:21:58]} {[%emt 00:09:03]} 2. c4 {[%clk
01:31:10]} {[%emt 00:00:17]} e6 {[%clk 01:22:20]} {[%emt 00:00:08]} 3. Nf3
{[%clk 01:31:32]} {[%emt 00:00:08]} d5 {[%clk 01:22:34]} {[%emt 00:00:17]} 4.
Nc3 {[%clk 01:31:23]} {[%emt 00:00:39]} Bb4 {[%clk 01:22:48]} {[%emt 00:00:16]}
5. cxd5 {[%clk 01:30:39]} {[%emt 00:01:15]} exd5 {[%clk 01:23:13]} {[%emt
00:00:05]} 6. Bg5 {[%clk 01:30:53]} {[%emt 00:00:15]} Nbd7 {[%clk 01:21:58]}
{[%emt 00:01:46]} 7. Qc2 {[%clk 01:29:24]} {[%emt 00:01:58]} O-O {[%clk
01:17:47]} {[%emt 00:04:41]} 8. e3 {[%clk 01:23:36]} {[%emt 00:06:18]} h6
{[%clk 01:16:48]} {[%emt 00:01:30]} 9. Bh4 {[%clk 01:23:41]} {[%emt 00:00:25]}
c5 {[%clk 01:17:05]} {[%emt 00:00:13]} 10. Bd3 {[%clk 01:13:48]} {[%emt
00:10:23]} c4 {[%clk 01:12:19]} {[%emt 00:05:16]} 11. Bf5 {[%clk 01:13:19]}
{[%emt 00:00:58]} Nb6 {[%clk 01:12:32]} {[%emt 00:00:17]} 12. Bxc8 {[%clk
01:05:53]} {[%emt 00:07:57]} Rxc8 {[%clk 01:09:51]} {[%emt 00:03:11]} 13. O-O
{[%clk 01:05:30]} {[%emt 00:00:52]} Qe7 {[%clk 01:09:25]} {[%emt 00:00:56]} 14.
Ne5 {[%clk 00:59:58]} {[%emt 00:06:03]} Qe6 {[%clk 01:09:23]} {[%emt 00:00:32]}
15. f3 {[%clk 00:50:23]} {[%emt 00:10:05]} Nfd7 {[%clk 00:49:49]} {[%emt
00:20:03]} 16. f4 {[%clk 00:42:28]} {[%emt 00:08:26]} Nxe5 {[%clk 00:40:18]}
{[%emt 00:10:02]} 17. dxe5 {[%clk 00:34:08]} {[%emt 00:08:51]} f6 {[%clk
00:38:31]} {[%emt 00:02:16]} 18. Bxf6 {[%clk 00:30:57]} {[%emt 00:03:41]} gxf6
{[%clk 00:36:44]} {[%emt 00:02:17]} 19. Qg6+ {[%clk 00:29:23]} {[%emt
00:02:04]} Kh8 {[%clk 00:37:10]} {[%emt 00:00:04]} 20. Qxh6+ {[%clk 00:29:41]}
{[%emt 00:00:12]} Kg8 {[%clk 00:37:37]} {[%emt 00:00:03]} 21. Qg6+ {[%clk
00:10:59]} {[%emt 00:19:12]} Kh8 {[%clk 00:37:35]} {[%emt 00:00:31]} 22. Qh6+
{[%clk 00:10:07]} {[%emt 00:01:22]} Kg8 {[%clk 00:38:00]} {[%emt 00:00:05]} 23.
f5 {[%clk 00:05:16]} {[%emt 00:05:23]} Qe7 {[%clk 00:36:19]} {[%emt 00:02:10]}
24. Rf3 {[%clk 00:04:52]} {[%emt 00:00:54]} Qh7 {[%clk 00:36:25]} {[%emt
00:00:24]} 25. Rg3+ {[%clk 00:04:28]} {[%emt 00:00:54]} Kh8 {[%clk 00:36:52]}
{[%emt 00:00:02]} 26. Qf4 {[%clk 00:04:55]} {[%emt 00:00:03]} Rg8 {[%clk
00:36:49]} {[%emt 00:00:33]} 27. exf6 {[%clk 00:04:31]} {[%emt 00:00:55]} Rcf8
{[%clk 00:30:28]} {[%emt 00:06:50]} 28. Rxg8+ {[%clk 00:03:59]} {[%emt
00:01:02]} Kxg8 {[%clk 00:30:43]} {[%emt 00:00:15]} 29. Rd1 {[%clk 00:02:48]}
{[%emt 00:01:42]} Bxc3 {[%clk 00:22:33]} {[%emt 00:08:40]} 30. Qg5+ {[%clk
00:03:17]} Kf7 {[%clk 00:19:33]} {[%emt 00:03:30]} 31. bxc3 {[%clk 00:03:45]}
{[%emt 00:00:03]} Re8 {[%clk 00:18:00]} {[%emt 00:02:03]} 32. a4 {[%clk
00:01:44]} {[%emt 00:02:31]} Re5 {[%clk 00:17:54]} {[%emt 00:00:36]} 33. e4
{[%clk 00:02:05]} {[%emt 00:00:09]} Nd7 {[%clk 00:13:22]} {[%emt 00:05:02]} 34.
Rxd5 {[%clk 00:01:43]} {[%emt 00:00:53]} Rxd5 {[%clk 00:13:46]} {[%emt
00:00:07]} 35. exd5 {[%clk 00:02:11]} {[%emt 00:00:02]} Nxf6 {[%clk 00:13:59]}
{[%emt 00:00:16]} 36. Qf4 {[%clk 00:00:55]} {[%emt 00:01:46]} Nxd5 {[%clk
00:13:40]} {[%emt 00:00:49]} 37. Qe4 {[%clk 00:01:22]} {[%emt 00:00:02]} Ne7
{[%clk 00:13:44]} {[%emt 00:00:27]} 38. Qxc4+ {[%clk 00:01:39]} {[%emt
00:00:13]} Kf8 {[%clk 00:14:12]} {[%emt 00:00:01]} 39. g4 {[%clk 00:01:43]}
{[%emt 00:00:27]} Qh6 {[%clk 00:10:38]} {[%emt 00:04:04]} 40. Kg2 {[%clk
00:01:08]} {[%emt 00:01:04]} Qd2+ {[%clk 00:09:34]} {[%emt 00:01:33]} 41. Kg3
{[%clk 00:00:54]} {[%emt 00:00:44]} Qe3+ {[%clk 00:07:08]} {[%emt 00:02:56]} 42.
Kg2 {[%clk 00:00:50]} {[%emt 00:00:36]} Qd2+ {[%clk 00:03:47]} {[%emt
00:03:50]} 43. Kg3 {[%clk 00:01:16]} {[%emt 00:00:05]} Qe1+ {[%clk 00:03:55]}
{[%emt 00:00:21]} 44. Kg2 {[%clk 00:01:20]} {[%emt 00:00:24]} Nc6 {[%clk
00:04:10]} {[%emt 00:00:17]} 45. Qd3 {[%clk 00:00:57]} {[%emt 00:00:53]} Ke7
{[%clk 00:02:26]} {[%emt 00:02:14]} 46. Qd5 {[%clk 00:00:46]} {[%emt 00:00:40]}
Kf6 {[%clk 00:02:07]} {[%emt 00:00:50]} 47. Qc5 {[%clk 00:00:33]} {[%emt
00:00:43]} Kg5 {[%clk 00:02:14]} {[%emt 00:00:23]} 48. h3 {[%clk 00:01:00]}
{[%emt 00:00:03]} Kh4 {[%clk 00:00:55]} {[%emt 00:01:50]} 49. Qf2+ {[%clk
00:01:00]} {[%emt 00:00:30]} Qxf2+ {[%clk 00:01:16]} {[%emt 00:00:09]} 50. Kxf2
{[%clk 00:01:28]} {[%emt 00:00:01]} Kxh3 {[%clk 00:01:31]} {[%emt 00:00:15]} 51.
Kf3 {[%clk 00:01:26]} {[%emt 00:00:33]} Ne5+ {[%clk 00:01:26]} {[%emt
00:00:34]} 52. Ke4 {[%clk 00:01:55]} {[%emt 00:00:01]} Nxg4 {[%clk 00:01:40]}
{[%emt 00:00:16]} 53. Kd5 {[%clk 00:02:16]} {[%emt 00:00:09]} Kg3 {[%clk
00:01:51]} {[%emt 00:00:19]} 54. Kd6 {[%clk 00:02:02]} {[%emt 00:00:44]} Kf4
{[%clk 00:01:59]} {[%emt 00:00:21]} 55. Kc7 {[%clk 00:02:24]} {[%emt 00:00:08]}
Kxf5 {[%clk 00:01:34]} {[%emt 00:00:56]} 56. Kxb7 {[%clk 00:02:50]} {[%emt
00:00:04]} a5 {[%clk 00:01:33]} {[%emt 00:00:31]} 57. Kb6 {[%clk 00:03:00]}
{[%emt 00:00:20]} Ke6 {[%clk 00:01:48]} {[%emt 00:00:14]} 58. Kxa5 {[%clk
00:03:25]} {[%emt 00:00:06]} Kd6 {[%clk 00:01:51]} {[%emt 00:00:27]} 59. Kb6
{[%clk 00:03:45]} {[%emt 00:00:10]} Ne5 {[%clk 00:02:16]} {[%emt 00:00:05]} 60.
a5 {[%clk 00:04:02]} {[%emt 00:00:14]} Nc4+ {[%clk 00:02:41]} {[%emt 00:00:04]}
61. Kb5 {[%clk 00:04:25]} {[%emt 00:00:07]} Nxa5 {[%clk 00:03:06]} {[%emt
00:00:05]} 62. Kxa5 {[%clk 00:04:53]} {[%emt 00:00:02]} Kc5 {[%clk 00:03:31]}
{[%emt 00:00:05]} 63. c4 {[%clk 00:05:21]} {[%emt 00:00:02]} Kxc4 {[%clk
00:03:57]} {[%emt 00:00:05]} 1/2-1/2

[Event "20th Rochefort Chess Festival - Masters"]
[Site "Rochefort, France"]
[Date "2022.02.17"]
[Round "8.2"]
[White "Mirzoev, Emil"]
[Black "Bauer, Christian"]
[Result "1/2-1/2"]
[TimeControl "1h30 + [30'']"]
[WhiteElo "2460"]
[BlackElo "2613"]

1. d4 {[%clk 01:22:37]} {[%emt 00:08:22]} Nf6 {[%clk 01:30:53]} {[%emt
00:00:07]} 2. c4 {[%clk 01:22:58]} {[%emt 00:00:08]} e6 {[%clk 01:31:14]}
{[%emt 00:00:10]} 3. Nf3 {[%clk 01:23:03]} {[%emt 00:00:25]} Bb4+ {[%clk
01:31:18]} {[%emt 00:00:25]} 4. Bd2 {[%clk 01:22:57]} {[%emt 00:00:36]} a5
{[%clk 01:31:36]} {[%emt 00:00:13]} 5. a3 {[%clk 01:22:07]} {[%emt 00:01:20]}
Bxd2+ {[%clk 01:31:01]} {[%emt 00:01:04]} 6. Qxd2 {[%clk 01:20:28]} {[%emt
00:02:09]} d6 {[%clk 01:24:49]} {[%emt 00:06:42]} 7. Nc3 {[%clk 01:19:26]}
{[%emt 00:01:32]} O-O {[%clk 01:24:45]} {[%emt 00:00:35]} 8. e4 {[%clk
01:19:08]} {[%emt 00:00:48]} Nc6 {[%clk 01:23:58]} {[%emt 00:01:16]} 9. O-O-O
{[%clk 01:19:30]} {[%emt 00:00:09]} Qe7 {[%clk 01:17:51]} {[%emt 00:06:38]} 10.
Bd3 {[%clk 01:19:40]} {[%emt 00:00:20]} e5 {[%clk 01:15:37]} {[%emt 00:02:44]}
11. dxe5 {[%clk 01:20:01]} {[%emt 00:00:09]} dxe5 {[%clk 01:12:44]} {[%emt
00:03:22]} 12. Nd5 {[%clk 01:19:55]} {[%emt 00:00:35]} Qd6 {[%clk 01:07:28]}
{[%emt 00:05:46]} 13. h3 {[%clk 01:15:56]} {[%emt 00:04:29]} Ne7 {[%clk
00:52:15]} {[%emt 00:15:42]} 14. Bc2 {[%clk 01:02:31]} {[%emt 00:13:55]} Nexd5
{[%clk 00:38:10]} {[%emt 00:14:35]} 15. exd5 {[%clk 01:01:58]} {[%emt
00:01:04]} Re8 {[%clk 00:37:21]} {[%emt 00:01:19]} 16. Rhe1 {[%clk 00:54:15]}
{[%emt 00:08:11]} Bd7 {[%clk 00:36:43]} {[%emt 00:01:10]} 17. Qc3 {[%clk
00:43:54]} {[%emt 00:10:51]} e4 {[%clk 00:36:05]} {[%emt 00:01:08]} 18. Nd2
{[%clk 00:42:56]} {[%emt 00:01:28]} Bf5 {[%clk 00:28:31]} {[%emt 00:08:04]} 19.
f3 {[%clk 00:25:01]} {[%emt 00:18:25]} e3 {[%clk 00:24:16]} {[%emt 00:04:45]}
20. Bxf5 {[%clk 00:20:21]} {[%emt 00:05:10]} exd2+ {[%clk 00:23:20]} {[%emt
00:01:26]} 21. Qxd2 {[%clk 00:20:30]} {[%emt 00:00:21]} b6 {[%clk 00:16:18]}
{[%emt 00:07:32]} 22. Bc2 {[%clk 00:18:09]} {[%emt 00:02:51]} Nd7 {[%clk
00:12:17]} {[%emt 00:04:30]} 23. Kb1 {[%clk 00:13:41]} {[%emt 00:04:59]} Nc5
{[%clk 00:12:05]} {[%emt 00:00:42]} 24. Re3 {[%clk 00:12:59]} {[%emt 00:01:12]}
g6 {[%clk 00:12:01]} {[%emt 00:00:35]} 25. Rde1 {[%clk 00:13:09]} {[%emt
00:00:20]} Rf8 {[%clk 00:08:22]} {[%emt 00:04:09]} 26. Qd4 {[%clk 00:12:21]}
{[%emt 00:01:15]} Rab8 {[%clk 00:07:17]} {[%emt 00:01:37]} 27. h4 {[%clk
00:10:03]} {[%emt 00:02:49]} Ne6 {[%clk 00:04:03]} {[%emt 00:03:44]} 28. Qf6
{[%clk 00:06:45]} {[%emt 00:03:47]} Nf4 {[%clk 00:03:55]} {[%emt 00:00:37]} 29.
Qxd6 {[%clk 00:06:58]} {[%emt 00:00:17]} cxd6 {[%clk 00:04:24]} {[%emt
00:00:01]} 30. Re4 {[%clk 00:07:18]} {[%emt 00:00:10]} Nh5 {[%clk 00:04:23]}
{[%emt 00:00:31]} 31. Ba4 {[%clk 00:07:29]} {[%emt 00:00:19]} Ng3 {[%clk
00:04:19]} {[%emt 00:00:34]} 32. Rg4 {[%clk 00:06:06]} {[%emt 00:01:52]} Nh5
{[%clk 00:04:43]} {[%emt 00:00:07]} 33. Rge4 {[%clk 00:05:10]} {[%emt
00:01:26]} Ng3 {[%clk 00:04:33]} {[%emt 00:00:40]} 34. Rg4 {[%clk 00:04:19]}
{[%emt 00:01:20]} Nh5 {[%clk 00:05:02]} {[%emt 00:00:02]} 35. Bc6 {[%clk
00:04:37]} {[%emt 00:00:12]} f5 {[%clk 00:05:00]} {[%emt 00:00:32]} 36. Rd4
{[%clk 00:05:07]} Rbd8 {[%clk 00:04:35]} {[%emt 00:00:56]} 37. Kc2 {[%clk
00:05:25]} {[%emt 00:00:12]} f4 {[%clk 00:04:07]} {[%emt 00:00:58]} 38. Kb3
{[%clk 00:05:28]} {[%emt 00:00:27]} Rf7 {[%clk 00:02:48]} {[%emt 00:01:50]} 39.
Ka4 {[%clk 00:05:30]} {[%emt 00:00:28]} Ng7 {[%clk 00:01:36]} {[%emt 00:01:41]}
40. Rde4 {[%clk 00:05:41]} {[%emt 00:00:19]} Kf8 {[%clk 00:01:37]} {[%emt
00:00:30]} 41. Kb5 {[%clk 00:05:47]} {[%emt 00:00:23]} Rb8 {[%clk 00:01:43]}
{[%emt 00:00:24]} 42. b3 {[%clk 00:05:27]} {[%emt 00:00:51]} h6 {[%clk
00:02:00]} {[%emt 00:00:14]} 43. Ka6 {[%clk 00:04:35]} {[%emt 00:01:22]} Rd8
{[%clk 00:01:23]} {[%emt 00:01:07]} 44. Kb5 {[%clk 00:02:53]} {[%emt 00:02:11]}
Rb8 {[%clk 00:01:52]} 45. b4 {[%clk 00:03:03]} {[%emt 00:00:21]} g5 {[%clk
00:00:50]} {[%emt 00:01:32]} 46. hxg5 {[%clk 00:03:23]} {[%emt 00:00:10]} hxg5
{[%clk 00:01:19]} 47. Rh1 {[%clk 00:03:41]} {[%emt 00:00:11]} Kg8 {[%clk
00:01:49]} 48. Rh6 {[%clk 00:03:36]} {[%emt 00:00:36]} axb4 {[%clk 00:01:26]}
{[%emt 00:00:53]} 49. Kxb4 {[%clk 00:03:40]} {[%emt 00:00:26]} Nf5 {[%clk
00:01:33]} {[%emt 00:00:23]} 50. Rg6+ {[%clk 00:03:52]} {[%emt 00:00:18]} Rg7
{[%clk 00:01:51]} {[%emt 00:00:12]} 51. Rxg7+ {[%clk 00:03:40]} {[%emt
00:00:43]} Kxg7 {[%clk 00:02:14]} {[%emt 00:00:08]} 52. Kb5 {[%clk 00:03:43]}
{[%emt 00:00:27]} Ne3 {[%clk 00:01:35]} {[%emt 00:01:09]} 53. g4 {[%clk
00:03:32]} {[%emt 00:00:41]} Nf1 {[%clk 00:01:11]} {[%emt 00:00:54]} 54. Re7+
{[%clk 00:03:09]} {[%emt 00:00:53]} Kf6 {[%clk 00:01:23]} {[%emt 00:00:18]} 55.
Re2 {[%clk 00:01:56]} {[%emt 00:01:42]} Ne3 {[%clk 00:01:42]} {[%emt 00:00:12]}
56. Rh2 {[%clk 00:02:12]} {[%emt 00:00:12]} Ke5 {[%clk 00:01:46]} {[%emt
00:00:27]} 57. Rh5 {[%clk 00:02:14]} {[%emt 00:00:28]} Rg8 {[%clk 00:00:48]}
{[%emt 00:01:28]} 58. a4 {[%clk 00:02:17]} {[%emt 00:00:28]} Kd4 {[%clk
00:01:10]} {[%emt 00:00:08]} 59. Kxb6 {[%clk 00:01:49]} {[%emt 00:00:58]} Nxc4+
{[%clk 00:01:27]} {[%emt 00:00:12]} 60. Kc7 {[%clk 00:02:18]} {[%emt 00:00:01]}
Rg7+ {[%clk 00:01:31]} {[%emt 00:00:26]} 61. Kd8 {[%clk 00:01:49]} {[%emt
00:00:58]} Ke3 {[%clk 00:01:49]} {[%emt 00:00:12]} 62. Rh3 {[%clk 00:01:44]}
{[%emt 00:00:35]} Kf2 {[%clk 00:02:03]} {[%emt 00:00:16]} 63. Rh1 {[%clk
00:01:16]} {[%emt 00:00:59]} Kxf3 {[%clk 00:02:20]} {[%emt 00:00:13]} 64. Rc1
{[%clk 00:01:40]} {[%emt 00:00:06]} Na5 {[%clk 00:01:17]} {[%emt 00:01:32]} 65.
Bd7 {[%clk 00:01:30]} {[%emt 00:00:40]} Nb7+ {[%clk 00:00:56]} {[%emt
00:00:51]} 66. Kc8 {[%clk 00:01:11]} {[%emt 00:00:49]} Nc5 {[%clk 00:01:18]}
{[%emt 00:00:08]} 67. Rxc5 {[%clk 00:00:50]} {[%emt 00:00:51]} dxc5 {[%clk
00:01:47]} 68. Bb5 {[%clk 00:01:07]} {[%emt 00:00:13]} Ke3 {[%clk 00:01:24]}
{[%emt 00:00:54]} 69. d6 {[%clk 00:01:26]} {[%emt 00:00:10]} Kd4 {[%clk
00:01:51]} {[%emt 00:00:03]} 70. d7 {[%clk 00:01:13]} {[%emt 00:00:43]} Rg8+
{[%clk 00:01:16]} {[%emt 00:01:05]} 71. d8=Q+ {[%clk 00:01:24]} {[%emt
00:00:19]} Rxd8+ {[%clk 00:01:44]} {[%emt 00:00:02]} 72. Kxd8 {[%clk 00:01:50]}
{[%emt 00:00:05]} c4 {[%clk 00:01:49]} {[%emt 00:00:25]} 73. a5 {[%clk
00:02:09]} {[%emt 00:00:10]} f3 {[%clk 00:02:01]} {[%emt 00:00:18]} 74. a6
{[%clk 00:02:08]} {[%emt 00:00:31]} f2 {[%clk 00:02:27]} {[%emt 00:00:04]} 75.
a7 {[%clk 00:02:26]} {[%emt 00:00:12]} f1=Q {[%clk 00:02:49]} {[%emt 00:00:07]}
76. a8=Q {[%clk 00:02:54]} {[%emt 00:00:03]} Qf8+ {[%emt 00:02:35]} 77. Be8
{[%emt 00:00:02]} Qf6+ {[%emt 00:00:02]} 1/2-1/2

[Event "20th Rochefort Chess Festival - Masters"]
[Site "Rochefort, France"]
[Date "2022.02.17"]
[Round "8.4"]
[White "Suarez Uriel, Adrian"]
[Black "Fecker, Noah"]
[Result "0-1"]
[TimeControl "1h30 + [30'']"]
[WhiteElo "2348"]
[BlackElo "2328"]

1. e4 {[%clk 01:26:24]} {[%emt 00:04:32]} c6 {[%clk 01:30:56]} {[%emt
00:00:08]} 2. Nf3 {[%clk 01:26:49]} {[%emt 00:00:04]} d5 {[%clk 01:31:23]}
{[%emt 00:00:03]} 3. d3 {[%clk 01:27:16]} {[%emt 00:00:04]} g6 {[%clk
01:31:38]} {[%emt 00:00:15]} 4. e5 {[%clk 01:27:42]} {[%emt 00:00:04]} Bg7
{[%clk 01:32:02]} {[%emt 00:00:05]} 5. d4 {[%clk 01:28:10]} {[%emt 00:00:03]}
f6 {[%clk 01:31:32]} {[%emt 00:00:59]} 6. exf6 {[%clk 01:28:36]} {[%emt
00:00:04]} Nxf6 {[%clk 01:31:52]} {[%emt 00:00:10]} 7. Be2 {[%clk 01:29:01]}
{[%emt 00:00:05]} Qd6 {[%clk 01:28:57]} {[%emt 00:03:25]} 8. O-O {[%emt
00:00:16]} Nbd7 {[%clk 01:28:32]} {[%emt 00:00:47]} 9. Re1 {[%clk 01:29:38]}
{[%emt 00:00:14]} O-O {[%clk 01:25:58]} {[%emt 00:03:03]} 10. Bf1 {[%clk
01:30:05]} {[%emt 00:00:04]} Ne4 {[%clk 01:21:24]} {[%emt 00:05:04]} 11. c4
{[%clk 01:17:15]} {[%emt 00:13:20]} b6 {[%clk 00:59:54]} {[%emt 00:22:00]} 12.
Na3 {[%clk 01:09:27]} {[%emt 00:08:18]} Ndf6 {[%clk 00:55:01]} {[%emt
00:05:23]} 13. h3 {[%clk 01:02:26]} {[%emt 00:07:32]} Bf5 {[%clk 00:46:13]}
{[%emt 00:09:18]} 14. Be3 {[%clk 01:00:19]} {[%emt 00:02:37]} Rac8 {[%clk
00:43:26]} {[%emt 00:03:17]} 15. Rc1 {[%clk 00:56:39]} {[%emt 00:04:10]} Qb4
{[%clk 00:37:12]} {[%emt 00:06:44]} 16. cxd5 {[%clk 00:40:21]} {[%emt
00:16:48]} cxd5 {[%clk 00:35:20]} {[%emt 00:02:22]} 17. Qb3 {[%clk 00:40:50]}
{[%emt 00:00:01]} Qxb3 {[%clk 00:33:01]} {[%emt 00:02:49]} 18. axb3 {[%clk
00:41:18]} {[%emt 00:00:01]} Rxc1 {[%clk 00:32:24]} {[%emt 00:01:07]} 19. Bxc1
{[%clk 00:41:19]} {[%emt 00:00:30]} Ne8 {[%clk 00:30:26]} {[%emt 00:02:28]} 20.
Nb5 {[%clk 00:40:32]} {[%emt 00:01:16]} a5 {[%clk 00:28:13]} {[%emt 00:02:44]}
21. Nc3 {[%clk 00:39:42]} {[%emt 00:01:20]} Nxc3 {[%clk 00:26:01]} {[%emt
00:02:42]} 22. bxc3 {[%clk 00:40:11]} {[%emt 00:00:01]} Bf6 {[%clk 00:25:17]}
{[%emt 00:01:13]} 23. Ne5 {[%clk 00:33:11]} {[%emt 00:07:30]} Nd6 {[%clk
00:23:34]} {[%emt 00:02:13]} 24. g4 {[%clk 00:31:27]} {[%emt 00:02:14]} Bc2
{[%clk 00:20:15]} {[%emt 00:03:49]} 25. Nd7 {[%clk 00:31:16]} {[%emt 00:00:41]}
Rd8 {[%clk 00:17:54]} {[%emt 00:02:51]} 26. Nxb6 {[%clk 00:30:43]} {[%emt
00:01:04]} Ne4 {[%clk 00:17:05]} {[%emt 00:01:20]} 27. Re3 {[%clk 00:09:54]}
{[%emt 00:21:18]} Bh4 {[%clk 00:10:01]} {[%emt 00:07:34]} 28. Kg2 {[%clk
00:07:40]} {[%emt 00:02:45]} Nxf2 {[%clk 00:09:42]} {[%emt 00:00:48]} 29. Re5
{[%clk 00:06:14]} {[%emt 00:01:56]} Be4+ {[%clk 00:08:45]} {[%emt 00:01:27]} 30.
Kg1 {[%clk 00:06:44]} Nd1 {[%clk 00:08:28]} {[%emt 00:00:49]} 31. Na4 {[%clk
00:04:51]} {[%emt 00:02:23]} Rf8 {[%clk 00:06:00]} {[%emt 00:02:58]} 32. Be2
{[%clk 00:04:15]} {[%emt 00:01:06]} Nf2 {[%clk 00:05:31]} {[%emt 00:00:58]} 33.
Nc5 {[%clk 00:03:57]} {[%emt 00:00:49]} Bg3 {[%clk 00:03:47]} {[%emt 00:02:15]}
34. Nxe4 {[%clk 00:03:54]} {[%emt 00:00:33]} Nxe4 {[%clk 00:04:15]} {[%emt
00:00:01]} 35. Rxe7 {[%clk 00:03:56]} {[%emt 00:00:28]} Rf2 {[%clk 00:04:39]}
{[%emt 00:00:06]} 36. Rxe4 {[%clk 00:03:13]} {[%emt 00:01:13]} dxe4 {[%clk
00:05:08]} {[%emt 00:00:01]} 37. Bc4+ {[%clk 00:03:40]} {[%emt 00:00:03]} Kg7
{[%clk 00:05:29]} {[%emt 00:00:07]} 38. d5 {[%clk 00:02:23]} {[%emt 00:01:48]}
Rc2 {[%clk 00:05:54]} {[%emt 00:00:05]} 39. Ba3 {[%clk 00:02:51]} {[%emt
00:00:03]} e3 {[%clk 00:06:00]} {[%emt 00:00:24]} 40. Kf1 {[%clk 00:02:48]}
{[%emt 00:00:33]} Rf2+ {[%clk 00:06:20]} {[%emt 00:00:09]} 0-1


[ePGN "0.1;DGT LiveChess/2.2.5"]

[Event "20th Rochefort Chess Festival - Masters"]
[Site "Rochefort, France"]
[Date "2022.02.18"]
[Round "9.2"]
[White "Galperin, Platon"]
[Black "Mirzoev, Emil"]
[Result "1/2-1/2"]
[TimeControl "1h30 + [30'']"]
[WhiteElo "2522"]
[BlackElo "2460"]

1. d4 {[%clk 01:09:23]} {[%emt 00:21:36]} Nf6 {[%clk 01:30:35]} {[%emt
00:00:25]} 2. c4 {[%clk 01:09:34]} {[%emt 00:00:18]} g6 {[%clk 01:30:29]}
{[%emt 00:00:37]} 3. Nc3 {[%clk 01:09:11]} {[%emt 00:00:53]} d5 {[%clk
01:27:27]} {[%emt 00:03:30]} 4. Nf3 {[%clk 01:08:05]} {[%emt 00:01:39]} Bg7
{[%clk 01:23:41]} {[%emt 00:04:15]} 5. Bg5 {[%clk 01:04:14]} {[%emt 00:04:21]}
c6 {[%clk 01:19:54]} {[%emt 00:04:16]} 6. e3 {[%clk 01:00:40]} {[%emt
00:04:05]} O-O {[%clk 01:17:55]} {[%emt 00:02:29]} 7. Bd3 {[%clk 00:53:30]}
{[%emt 00:07:40]} Bg4 {[%clk 01:15:41]} {[%emt 00:02:45]} 8. O-O {[%clk
00:51:11]} {[%emt 00:02:49]} e6 {[%clk 01:12:46]} {[%emt 00:03:22]} 9. h3
{[%clk 00:50:27]} {[%emt 00:01:17]} Bxf3 {[%clk 01:10:50]} {[%emt 00:02:26]} 10.
Qxf3 {[%clk 00:49:47]} {[%emt 00:01:11]} Nbd7 {[%clk 01:09:49]} {[%emt
00:01:29]} 11. Rad1 {[%clk 00:46:28]} {[%emt 00:03:50]} Qa5 {[%clk 01:05:33]}
{[%emt 00:04:44]} 12. Bh4 {[%clk 00:45:14]} {[%emt 00:01:46]} Rfe8 {[%clk
01:01:30]} {[%emt 00:04:34]} 13. a3 {[%clk 00:43:50]} {[%emt 00:01:54]} h6
{[%clk 00:58:55]} {[%emt 00:03:05]} 14. Rd2 {[%clk 00:43:07]} {[%emt 00:01:12]}
a6 {[%clk 00:53:51]} {[%emt 00:05:35]} 15. Rc2 {[%clk 00:39:40]} {[%emt
00:03:56]} b5 {[%clk 00:44:12]} {[%emt 00:10:10]} 16. cxd5 {[%clk 00:38:26]}
{[%emt 00:01:44]} cxd5 {[%clk 00:41:00]} {[%emt 00:03:42]} 17. Na2 {[%clk
00:34:54]} {[%emt 00:04:02]} Rac8 {[%clk 00:38:54]} {[%emt 00:02:35]} 18. Qe2
{[%clk 00:33:17]} {[%emt 00:02:08]} e5 {[%clk 00:35:00]} {[%emt 00:04:24]} 19.
dxe5 {[%clk 00:33:05]} {[%emt 00:00:42]} Nxe5 {[%clk 00:33:10]} {[%emt
00:02:20]} 20. Rfc1 {[%clk 00:32:17]} {[%emt 00:01:17]} Rxc2 {[%clk 00:32:19]}
{[%emt 00:01:22]} 21. Rxc2 {[%clk 00:32:28]} {[%emt 00:00:19]} Nc4 {[%clk
00:32:22]} {[%emt 00:00:27]} 1/2-1/2